fUST/lending_fUST_20240508
["ID","MTS","AMOUNT","RATE_DAILY","PERIOD"]
[326576168,1715116242113,-500.0,0.00016423,2]
[326576170,1715116242124,-500.0,0.00016423,2]
[326576171,1715116242133,-530.68625583,0.00016423,2]
[326576174,1715116242145,-500.76107436,0.00016423,2]
[326576175,1715116242155,-500.0,0.00016423,2]
[326576177,1715116242166,-500.25927508,0.00016423,2]
[326576180,1715116242178,-500.0,0.00016423,2]
[326576181,1715116242188,-843.47,0.00016423,2]
[326576183,1715116242198,-500.0,0.00016423,2]
[326576186,1715116242208,-500.0,0.00016423,2]
[326576187,1715116242217,-500.0,0.00016423,2]
[326576189,1715116242227,-500.0,0.00016423,2]
[326576191,1715116242236,-500.0,0.00016423,2]
[326576194,1715116242246,-309.595108,0.00016423,2]
[326576196,1715116242256,-500.0,0.00016423,2]
[326576198,1715116242266,-500.0,0.00016423,2]
[326576199,1715116242276,-506.6928365,0.00016423,2]
[326576201,1715116242286,-1000.0,0.00016423,2]
[326576204,1715116242296,-500.0,0.00016423,2]
[326576206,1715116242307,-309.595108,0.00016423,2]
[326576208,1715116242317,-505.82829325,0.00016423,2]
[326576210,1715116242327,-594.98781422,0.00016423,2]
[326576212,1715116242336,-500.0,0.00016423,2]
[326576213,1715116242346,-502.82631766,0.00016423,2]
[326576215,1715116242356,-500.0,0.00016423,2]
[326576217,1715116242369,-500.0,0.00016423,2]
[326576220,1715116242379,-500.0,0.00016423,2]
[326576221,1715116242389,-500.0,0.00016423,2]
[326576224,1715116242399,-500.0,0.00016423,2]
[326576225,1715116242409,-500.0,0.00016423,2]
[326576227,1715116242419,-533.51680516,0.00016423,2]
[326576229,1715116242430,-569.06,0.00016423,2]
[326576231,1715116242441,-500.0,0.00016423,2]
[326576233,1715116242452,-500.0,0.00016423,2]
[326576236,1715116242463,-500.0,0.00016423,2]
[326576238,1715116242473,-500.0,0.00016423,2]
[326576239,1715116242483,-500.0,0.00016423,2]
[326576241,1715116242493,-500.0,0.00016423,2]
[326576244,1715116242503,-500.0,0.00016423,2]
[326576245,1715116242513,-500.0,0.00016423,2]
[326576247,1715116242523,-151.0,0.00016423,2]
[326576248,1715116242533,-213.62699409,0.00016423,2]
[326576250,1715116242543,-500.0,0.00016423,2]
[326576252,1715116242554,-500.0,0.00016423,2]
[326576254,1715116242563,-617.88,0.00016423,2]
[326576256,1715116242573,-500.0,0.00016423,2]
[326576258,1715116242583,-500.0,0.00016423,2]
[326576260,1715116242593,-500.0,0.00016423,2]
[326576262,1715116242603,-500.0,0.00016423,2]
[326576264,1715116242612,-506.71119812,0.00016423,2]
[326576266,1715116242622,-500.0,0.00016423,2]
[326576268,1715116242632,-500.0,0.00016423,2]
[326576269,1715116242642,-500.0,0.00016423,2]
[326576270,1715116242652,-279.050943,0.00016423,2]
[326576271,1715116242661,-500.0,0.00016423,2]
[326576272,1715116242671,-500.0,0.00016423,2]
[326576273,1715116242681,-279.050943,0.00016423,2]
[326576274,1715116242691,-500.74417456,0.00016423,2]
[326576275,1715116242701,-500.0,0.00016423,2]
[326576276,1715116242711,-500.0,0.00016423,2]
[326576277,1715116242721,-500.0,0.00016423,2]
[326576278,1715116242731,-500.0,0.00016423,2]
[326576279,1715116242742,-500.0,0.00016423,2]
[326576280,1715116242751,-500.0,0.00016423,2]
[326576281,1715116242762,-500.0,0.00016423,2]
[326576282,1715116242772,-500.0,0.00016423,2]
[326576283,1715116242783,-151.0,0.00016423,2]
[326576284,1715116242793,-151.0,0.00016423,2]
[326576285,1715116242803,-500.0,0.00016423,2]
[326576286,1715116242813,-500.0,0.00016423,2]
[326576287,1715116242828,-500.0,0.00016423,2]
[326576288,1715116242838,-500.0,0.00016423,2]
[326576289,1715116242848,-500.0,0.00016423,2]
[326576290,1715116242858,-500.0,0.00016423,2]
[326576291,1715116242873,-500.0,0.00016423,2]
[326576293,1715116242889,-635.43972744,0.00016423,2]
[326576294,1715116242900,-500.0,0.00016423,2]
[326576296,1715116242912,-151.0,0.00016423,2]
[326576298,1715116242922,-151.0,0.00016423,2]
[326576300,1715116242932,-151.0,0.00016423,2]
[326576302,1715116242941,-151.0,0.00016423,2]
[326576304,1715116242951,-670.73,0.00016423,2]
[326576306,1715116242960,-500.0,0.00016423,2]
[326576308,1715116242970,-352.86038135,0.00016423,2]
[326576310,1715116242979,-500.0,0.00016423,2]
[326576312,1715116242989,-500.0,0.00016423,2]
[326576314,1715116242998,-500.0,0.00016423,2]
[326576316,1715116243008,-500.0,0.00016423,2]
[326576318,1715116243019,-500.0,0.00016423,2]
[326576320,1715116243028,-500.0,0.00016423,2]
[326576322,1715116243038,-500.0,0.00016423,2]
[326576324,1715116243047,-500.0,0.00016423,2]
[326576326,1715116243059,-500.0,0.00016423,2]
[326576328,1715116243069,-500.0,0.00016423,2]
[326576330,1715116243078,-500.0,0.00016423,2]
[326576332,1715116243089,-151.0,0.00016423,2]
[326576334,1715116243098,-500.0,0.00016423,2]
[326576336,1715116243108,-500.0,0.00016423,2]
[326576338,1715116243118,-151.0,0.00016423,2]
[326576340,1715116243128,-500.0,0.00016423,2]
[326576342,1715116243137,-500.0,0.00016423,2]
[326576344,1715116243146,-151.0,0.00016423,2]
[326576346,1715116243156,-151.0,0.00016423,2]
[326576348,1715116243165,-178.024163,0.00016423,2]
[326576350,1715116243175,-178.024163,0.00016423,2]
[326576352,1715116243184,-178.024163,0.00016423,2]
[326576354,1715116243194,-273.651179,0.00016423,2]
[326576356,1715116243205,-273.651179,0.00016423,2]
[326576358,1715116243214,-178.024163,0.00016423,2]
[326576360,1715116243224,-273.651179,0.00016423,2]
[326576362,1715116243234,-273.651179,0.00016423,2]
[326576364,1715116243244,-235.187238,0.00016423,2]
[326576366,1715116243254,-235.187238,0.00016423,2]
[326576368,1715116243264,-235.187238,0.00016423,2]
[326576370,1715116243273,-235.187238,0.00016423,2]
[326576372,1715116243283,-220.696715,0.00016423,2]
[326576374,1715116243293,-220.696715,0.00016423,2]
[326576376,1715116243303,-220.696715,0.00016423,2]
[326576378,1715116243312,-220.696715,0.00016423,2]
[326576380,1715116243322,-151.0,0.00016423,2]
[326576382,1715116243332,-151.0,0.00016423,2]
[326576384,1715116243342,-342.055948,0.00016423,2]
[326576386,1715116243352,-342.055948,0.00016423,2]
[326576387,1715116243363,-151.0,0.00016423,2]
[326576390,1715116243373,-151.0,0.00016423,2]
[326576392,1715116243383,-342.055948,0.00016423,2]
[326576393,1715116243392,-342.055948,0.00016423,2]
[326576396,1715116243403,-161.769146,0.00016423,2]
[326576397,1715116243413,-151.0,0.00016423,2]
[326576399,1715116243423,-151.0,0.00016423,2]
[326576401,1715116243433,-151.0,0.00016423,2]
[326576404,1715116243443,-151.0,0.00016423,2]
[326576406,1715116243453,-151.0,0.00016423,2]
[326576408,1715116243463,-151.0,0.00016423,2]
[326576410,1715116243473,-1000.0,0.00016429,2]
[326576412,1715116243482,-1000.0,0.00016433,2]
[326576414,1715116243494,-1000.0,0.00016445,2]
[326576416,1715116243503,-1000.0,0.00016476,2]
[326576418,1715116243513,-273.651179,0.00016476,2]
[326576419,1715116243522,-273.651179,0.00016476,2]
[326576422,1715116243532,-235.187238,0.00016476,2]
[326576423,1715116243542,-235.187238,0.00016476,2]
[326576425,1715116243552,-220.696715,0.00016476,2]
[326576427,1715116243561,-220.696715,0.00016476,2]
[326576429,1715116243571,-151.0,0.00016476,2]
[326576431,1715116243580,-342.055948,0.00016476,2]
[326576433,1715116243590,-151.0,0.00016476,2]
[326576435,1715116243599,-342.055948,0.00016476,2]
[326576437,1715116243608,-151.0,0.00016476,2]
[326576439,1715116243618,-151.0,0.00016476,2]
[326576440,1715116243627,-151.0,0.00016476,2]
[326576442,1715116243636,-1000.0,0.00016481,2]
[326576444,1715116243645,-1318.39,0.00016499,2]
[326576446,1715116243655,-273.3300509,0.000165,2]
[326576448,1715116243665,-153.0,0.000165,2]
[326576450,1715116243674,-153.0,0.000165,2]
[326576452,1715116243684,-306.0,0.000165,2]
[326576454,1715116243693,-306.0,0.000165,2]
[326576456,1715116243703,-153.0,0.000165,2]
[326576458,1715116243713,-153.0,0.000165,2]
[326576460,1715116243723,-153.0,0.000165,2]
[326576462,1715116243733,-1828.799615,0.000165,2]
[326576464,1715116243742,-153.0,0.000165,2]
[326576466,1715116243752,-1000.0,0.00016502,2]
[326576468,1715116243761,-1000.0,0.00016514,2]
[326576470,1715116243771,-1000.0,0.00016526,2]
[326576472,1715116243780,-1000.0,0.00016537,2]
[326576474,1715116243790,-990.0,0.00016543,2]
[326576476,1715116243799,-151.0,0.00016543,2]
[326576478,1715116243809,-1000.0,0.00016548,2]
[326576480,1715116243819,-1000.0,0.00016549,2]
[326576482,1715116243834,-1000.0,0.00016555,2]
[326576484,1715116243844,-1000.0,0.00016564,2]
[326576486,1715116243854,-1000.0,0.00016565,2]
[326576488,1715116243864,-153.0,0.00016575,2]
[326576490,1715116243875,-1000.0,0.00016583,2]
[326576492,1715116243884,-1318.39,0.00016596,2]
[326576494,1715116243894,-1318.39,0.00016596,2]
[326576496,1715116243905,-282.413635,0.00016597,2]
[326576498,1715116243915,-251.237979,0.00016597,2]
[326576500,1715116243925,-251.237979,0.00016597,2]
[326576502,1715116243935,-151.0,0.00016597,2]
[326576504,1715116243944,-309.595108,0.00016597,2]
[326576506,1715116243954,-153.148828,0.00016597,2]
[326576508,1715116243964,-309.595108,0.00016597,2]
[326576510,1715116243973,-155.174274,0.00016597,2]
[326576512,1715116243983,-279.050943,0.00016597,2]
[326576514,1715116243994,-279.050943,0.00016597,2]
[326576516,1715116244004,-151.0,0.00016597,2]
[326576518,1715116244014,-151.0,0.00016597,2]
[326576520,1715116244024,-151.0,0.00016597,2]
[326576522,1715116244033,-151.0,0.00016597,2]
[326576524,1715116244043,-151.0,0.00016597,2]
[326576526,1715116244052,-178.024163,0.00016597,2]
[326576528,1715116244062,-178.024163,0.00016597,2]
[326576530,1715116244071,-273.651179,0.00016597,2]
[326576532,1715116244080,-273.651179,0.00016597,2]
[326576534,1715116244090,-235.187238,0.00016597,2]
[326576536,1715116244099,-235.187238,0.00016597,2]
[326576538,1715116244109,-220.696715,0.00016597,2]
[326576540,1715116244119,-220.696715,0.00016597,2]
[326576542,1715116244128,-151.0,0.00016597,2]
[326576544,1715116244137,-342.055948,0.00016597,2]
[326576546,1715116244147,-151.0,0.00016597,2]
[326576548,1715116244157,-342.055948,0.00016597,2]
[326576550,1715116244166,-151.0,0.00016597,2]
[326576552,1715116244176,-151.0,0.00016597,2]
[326576554,1715116244185,-151.0,0.00016597,2]
[326576568,1715116244312,-153.0,0.000166,2]
[326576570,1715116244323,-1000.0,0.00016679,2]
[326576572,1715116244333,-1442.93,0.00016691,2]
[326576574,1715116244343,-5014.93,0.00016691,2]
[326576576,1715116244353,-500.0,0.00016691,2]
[326576578,1715116244365,-6936.23,0.00016691,2]
[326576580,1715116244375,-500.0,0.00016691,2]
[326576582,1715116244384,-713.0,0.00016691,2]
[326576584,1715116244395,-501.56690426,0.00016691,2]
[326576586,1715116244405,-884.01,0.00016691,2]
[326576587,1715116244415,-964.21,0.00016691,2]
[326576589,1715116244425,-500.0,0.00016691,2]
[326576591,1715116244435,-500.0,0.00016691,2]
[326576593,1715116244445,-511.93,0.00016691,2]
[326576595,1715116244455,-4632.07,0.00016691,2]
[326576597,1715116244464,-1727.79,0.00016691,2]
[326576599,1715116244475,-1608.72,0.00016691,2]
[326576601,1715116244485,-268.44552716,0.00016691,2]
[326576603,1715116244496,-627.6,0.00016691,2]
[326576605,1715116244506,-500.0,0.00016691,2]
[326576607,1715116244516,-413.62407401,0.00016691,2]
[326576609,1715116244525,-500.0,0.00016692,2]
[326576611,1715116244536,-500.0,0.00016692,2]
[326576613,1715116244546,-500.0,0.00016692,2]
[326576615,1715116244556,-500.0,0.00016692,2]
[326576617,1715116244566,-1080.17,0.00016692,2]
[326576619,1715116244576,-1000.0,0.00016692,2]
[326576621,1715116244587,-313.63103092,0.00016692,2]
[326576623,1715116244598,-500.0,0.00016692,2]
[326576625,1715116244609,-500.0,0.00016692,2]
[326576627,1715116244619,-500.0,0.00016692,2]
[326576629,1715116244629,-500.0,0.00016692,2]
[326576631,1715116244639,-500.0,0.00016692,2]
[326576633,1715116244649,-500.0,0.00016692,2]
[326576635,1715116244659,-500.0,0.00016692,2]
[326576637,1715116244670,-272.51171882,0.00016692,2]
[326576638,1715116244681,-500.0,0.00016692,2]
[326576640,1715116244691,-500.0,0.00016692,2]
[326576642,1715116244702,-559.59,0.00016692,2]
[326576643,1715116244711,-500.0,0.00016692,2]
[326576645,1715116244722,-500.0,0.00016692,2]
[326576647,1715116244732,-500.0,0.00016692,2]
[326576649,1715116244741,-500.0,0.00016692,2]
[326576650,1715116244751,-500.0,0.00016692,2]
[326576652,1715116244761,-500.0,0.00016692,2]
[326576654,1715116244772,-500.0,0.00016692,2]
[326576656,1715116244783,-500.0,0.00016692,2]
[326576658,1715116244794,-500.0,0.00016692,2]
[326576659,1715116244804,-500.0,0.00016692,2]
[326576661,1715116244815,-500.0,0.00016692,2]
[326576663,1715116244828,-815.92,0.00016692,2]
[326576665,1715116244838,-500.0,0.00016692,2]
[326576667,1715116244850,-500.0,0.00016692,2]
[326576668,1715116244860,-547.36,0.00016692,2]
[326576670,1715116244871,-500.0,0.00016692,2]
[326576672,1715116244882,-151.0,0.00016692,2]
[326576674,1715116244892,-500.0,0.00016692,2]
[326576675,1715116244904,-2171.45,0.00016692,2]
[326576677,1715116244915,-502.91754548,0.00016692,2]
[326576679,1715116244927,-500.0,0.00016692,2]
[326576681,1715116244937,-500.0,0.00016692,2]
[326576682,1715116244947,-500.0,0.00016692,2]
[326576684,1715116244958,-500.0,0.00016692,2]
[326576686,1715116244967,-588.33,0.00016692,2]
[326576688,1715116244978,-1075.88,0.00016692,2]
[326576690,1715116244988,-596.75,0.00016692,2]
[326576692,1715116244998,-500.0,0.00016692,2]
[326576693,1715116245008,-500.0,0.00016692,2]
[326576695,1715116245019,-500.0,0.00016692,2]
[326576697,1715116245030,-500.0,0.00016692,2]
[326576699,1715116245041,-500.0,0.00016692,2]
[326576701,1715116245051,-500.0,0.00016692,2]
[326576702,1715116245061,-515.86,0.00016692,2]
[326576704,1715116245073,-500.0,0.00016692,2]
[326576706,1715116245083,-500.0,0.00016692,2]
[326576708,1715116245094,-500.0,0.00016692,2]
[326576709,1715116245104,-500.0,0.00016692,2]
[326576711,1715116245114,-500.0,0.00016692,2]
[326576713,1715116245125,-500.0,0.00016692,2]
[326576715,1715116245136,-500.0,0.00016692,2]
[326576717,1715116245147,-500.0,0.00016692,2]
[326576719,1715116245158,-933.17,0.00016692,2]
[326576720,1715116245168,-500.0,0.00016692,2]
[326576722,1715116245178,-500.0,0.00016692,2]
[326576724,1715116245188,-500.0,0.00016692,2]
[326576726,1715116245199,-500.0,0.00016692,2]
[326576728,1715116245209,-500.0,0.00016692,2]
[326576729,1715116245219,-500.0,0.00016692,2]
[326576731,1715116245230,-500.0,0.00016692,2]
[326576733,1715116245241,-1708.15,0.00016692,2]
[326576735,1715116245251,-500.0,0.00016692,2]
[326576737,1715116245261,-545.39140088,0.00016692,2]
[326576739,1715116245272,-500.0,0.00016692,2]
[326576740,1715116245283,-2468.39,0.00016692,2]
[326576742,1715116245293,-500.0,0.00016692,2]
[326576744,1715116245303,-500.0,0.00016692,2]
[326576746,1715116245312,-500.0,0.00016692,2]
[326576748,1715116245323,-500.0,0.00016692,2]
[326576749,1715116245333,-502.73119952,0.00016692,2]
[326576751,1715116245344,-510.88100298,0.00016692,2]
[326576753,1715116245355,-500.0,0.00016692,2]
[326576755,1715116245370,-500.0,0.00016692,2]
[326576757,1715116245380,-500.0,0.00016692,2]
[326576759,1715116245391,-500.0,0.00016692,2]
[326576761,1715116245401,-500.0,0.00016692,2]
[326576762,1715116245411,-500.0,0.00016692,2]
[326576764,1715116245421,-500.0,0.00016692,2]
[326576766,1715116245431,-750.52,0.00016692,2]
[326576768,1715116245442,-500.0,0.00016692,2]
[326576770,1715116245452,-962.14,0.00016692,2]
[326576772,1715116245463,-500.0,0.00016692,2]
[326576773,1715116245473,-500.0,0.00016692,2]
[326576775,1715116245482,-500.0,0.00016692,2]
[326576777,1715116245493,-205.39563392,0.00016692,2]
[326576778,1715116245503,-500.0,0.00016692,2]
[326576780,1715116245513,-3889.55,0.00016692,2]
[326576782,1715116245524,-500.0,0.00016692,2]
[326576784,1715116245534,-500.0,0.00016692,2]
[326576786,1715116245544,-151.0,0.00016692,2]
[326576788,1715116245554,-2177.42,0.00016692,2]
[326576790,1715116245565,-4508.22,0.00016692,2]
[326576791,1715116245575,-151.0,0.00016692,2]
[326576793,1715116245585,-285.585166,0.00016692,2]
[326576795,1715116245595,-500.0,0.00016692,2]
[326576797,1715116245606,-273.651179,0.00016693,2]
[326576799,1715116245616,-273.651179,0.00016693,2]
[326576800,1715116245625,-235.187238,0.00016693,2]
[326576802,1715116245637,-235.187238,0.00016693,2]
[326576804,1715116245647,-220.696715,0.00016693,2]
[326576806,1715116245657,-220.696715,0.00016693,2]
[326576808,1715116245667,-342.055948,0.00016693,2]
[326576810,1715116245677,-151.0,0.00016693,2]
[326576811,1715116245687,-342.055948,0.00016693,2]
[326576813,1715116245697,-1318.39,0.00016693,2]
[326576815,1715116245707,-500.0,0.00016694,2]
[326576817,1715116245717,-500.0,0.00016694,2]
[326576819,1715116245727,-500.0,0.00016694,2]
[326576821,1715116245738,-500.0,0.00016694,2]
[326576824,1715116245748,-500.0,0.00016694,2]
[326576827,1715116245759,-500.0,0.00016694,2]
[326576831,1715116245770,-577.18205621,0.00016694,2]
[326576835,1715116245781,-500.0,0.00016694,2]
[326576837,1715116245791,-500.0,0.00016694,2]
[326576841,1715116245801,-500.0,0.00016694,2]
[326576843,1715116245811,-500.0,0.00016694,2]
[326576846,1715116245825,-500.0,0.00016694,2]
[326576848,1715116245835,-500.0,0.00016694,2]
[326576850,1715116245845,-3637.97,0.00016694,2]
[326576852,1715116245856,-500.0,0.00016694,2]
[326576853,1715116245868,-3578.53,0.00016694,2]
[326576855,1715116245878,-500.0,0.00016694,2]
[326576857,1715116245888,-500.0,0.00016694,2]
[326576859,1715116245899,-539.55271003,0.00016694,2]
[326576861,1715116245910,-503.42498468,0.00016694,2]
[326576863,1715116245921,-523.06921073,0.00016694,2]
[326576864,1715116245932,-500.0,0.00016694,2]
[326576866,1715116245942,-151.0,0.00016694,2]
[326576868,1715116245953,-500.0,0.00016694,2]
[326576870,1715116245963,-500.0,0.00016694,2]
[326576872,1715116245973,-500.0,0.00016694,2]
[326576874,1715116245984,-3520.96,0.00016694,2]
[326576876,1715116245994,-178.024163,0.00016694,2]
[326576877,1715116246004,-500.0,0.00016694,2]
[326576879,1715116246014,-178.024163,0.00016694,2]
[326576881,1715116246024,-500.0,0.00016694,2]
[326576883,1715116246034,-500.0,0.00016694,2]
[326576885,1715116246044,-259.31,0.00016694,2]
[326576887,1715116246054,-500.0,0.00016694,2]
[326576888,1715116246064,-500.0,0.00016694,2]
[326576890,1715116246074,-500.0,0.00016694,2]
[326576892,1715116246084,-500.0,0.00016694,2]
[326576894,1715116246095,-500.0,0.00016694,2]
[326576896,1715116246105,-500.0,0.00016694,2]
[326576898,1715116246115,-500.0,0.00016694,2]
[326576899,1715116246126,-500.0,0.00016694,2]
[326576901,1715116246136,-1239.16,0.00016694,2]
[326576903,1715116246146,-3826.83,0.00016694,2]
[326576905,1715116246157,-500.0,0.00016694,2]
[326576907,1715116246168,-500.0,0.00016694,2]
[326576909,1715116246178,-500.0,0.00016694,2]
[326576910,1715116246189,-500.0,0.00016694,2]
[326576912,1715116246200,-500.0,0.00016694,2]
[326576914,1715116246211,-569.41,0.00016694,2]
[326576916,1715116246221,-500.0,0.00016694,2]
[326576918,1715116246232,-500.0,0.00016694,2]
[326576920,1715116246242,-500.0,0.00016694,2]
[326576921,1715116246254,-2122.03,0.00016694,2]
[326576923,1715116246266,-151.0,0.00016694,2]
[326576925,1715116246276,-243.712544,0.00016694,2]
[326576927,1715116246286,-23516.81,0.00016694,2]
[326576929,1715116246296,-273.651179,0.00016695,2]
[326576931,1715116246306,-273.651179,0.00016695,2]
[326576933,1715116246317,-235.187238,0.00016695,2]
[326576934,1715116246327,-235.187238,0.00016695,2]
[326576936,1715116246337,-220.696715,0.00016695,2]
[326576938,1715116246348,-220.696715,0.00016695,2]
[326576940,1715116246358,-342.055948,0.00016695,2]
[326576942,1715116246373,-151.0,0.00016695,2]
[326576944,1715116246383,-342.055948,0.00016695,2]
[326576946,1715116246394,-1318.39,0.00016695,2]
[326576947,1715116246404,-1318.39,0.00016695,2]
[326576949,1715116246415,-1318.39,0.00016695,2]
[326576951,1715116246425,-159.098309,0.00016696,2]
[326576953,1715116246435,-159.098309,0.00016696,2]
[326576955,1715116246446,-500.0,0.00016696,2]
[326576957,1715116246457,-500.0,0.00016696,2]
[326576959,1715116246467,-251.237979,0.00016696,2]
[326576961,1715116246478,-251.237979,0.00016696,2]
[326576962,1715116246488,-151.0,0.00016696,2]
[326576964,1715116246499,-309.595108,0.00016696,2]
[326576966,1715116246509,-309.595108,0.00016696,2]
[326576968,1715116246520,-309.595108,0.00016696,2]
[326576970,1715116246530,-309.595108,0.00016696,2]
[326576972,1715116246541,-636.44,0.00016696,2]
[326576973,1715116246551,-871.1,0.00016696,2]
[326576975,1715116246561,-1641.05,0.00016696,2]
[326576977,1715116246571,-500.0,0.00016696,2]
[326576979,1715116246580,-279.050943,0.00016696,2]
[326576981,1715116246591,-279.050943,0.00016696,2]
[326576983,1715116246601,-279.050943,0.00016696,2]
[326576984,1715116246613,-279.050943,0.00016696,2]
[326576986,1715116246624,-500.0,0.00016696,2]
[326576988,1715116246635,-151.0,0.00016696,2]
[326576990,1715116246645,-151.0,0.00016696,2]
[326576992,1715116246656,-151.0,0.00016696,2]
[326576994,1715116246666,-151.0,0.00016696,2]
[326576996,1715116246676,-500.0,0.00016696,2]
[326576998,1715116246688,-500.0,0.00016696,2]
[326576999,1715116246698,-623.57,0.00016696,2]
[326577001,1715116246709,-151.0,0.00016696,2]
[326577003,1715116246720,-151.0,0.00016696,2]
[326577005,1715116246730,-500.0,0.00016696,2]
[326577007,1715116246740,-500.0,0.00016696,2]
[326577008,1715116246750,-500.0,0.00016696,2]
[326577010,1715116246760,-500.0,0.00016696,2]
[326577012,1715116246770,-500.0,0.00016696,2]
[326577014,1715116246780,-1222.17,0.00016696,2]
[326577015,1715116246791,-1177.74,0.00016696,2]
[326577017,1715116246801,-500.0,0.00016696,2]
[326577019,1715116246811,-500.0,0.00016696,2]
[326577021,1715116246824,-6956.44,0.00016696,2]
[326577023,1715116246835,-500.0,0.00016696,2]
[326577025,1715116246846,-500.0,0.00016696,2]
[326577026,1715116246856,-151.0,0.00016696,2]
[326577028,1715116246866,-151.0,0.00016696,2]
[326577030,1715116246878,-500.0,0.00016696,2]
[326577032,1715116246889,-500.0,0.00016696,2]
[326577034,1715116246900,-178.024163,0.00016696,2]
[326577036,1715116246911,-178.024163,0.00016696,2]
[326577038,1715116246921,-178.024163,0.00016696,2]
[326577040,1715116246931,-1808.74,0.00016696,2]
[326577042,1715116246943,-178.024163,0.00016696,2]
[326577043,1715116246953,-273.651179,0.00016696,2]
[326577044,1715116246965,-500.0,0.00016696,2]
[326577045,1715116246975,-273.651179,0.00016696,2]
[326577046,1715116246986,-816.62,0.00016696,2]
[326577047,1715116246997,-235.187238,0.00016696,2]
[326577048,1715116247007,-500.0,0.00016696,2]
[326577049,1715116247018,-235.187238,0.00016696,2]
[326577050,1715116247029,-220.696715,0.00016696,2]
[326577051,1715116247039,-220.696715,0.00016696,2]
[326577052,1715116247048,-342.055948,0.00016696,2]
[326577053,1715116247058,-151.0,0.00016696,2]
[326577054,1715116247068,-342.055948,0.00016696,2]
[326577055,1715116247078,-151.0,0.00016696,2]
[326577056,1715116247088,-4892.91,0.00016696,2]
[326577057,1715116247098,-1318.39,0.00016696,2]
[326577058,1715116247108,-500.0,0.00016696,2]
[326577059,1715116247118,-500.0,0.00016696,2]
[326577060,1715116247128,-500.0,0.00016697,2]
[326577061,1715116247138,-500.0,0.00016697,2]
[326577062,1715116247148,-500.0,0.00016697,2]
[326577063,1715116247159,-546.69,0.00016697,2]
[326577064,1715116247169,-500.0,0.00016697,2]
[326577065,1715116247179,-500.0,0.00016697,2]
[326577066,1715116247189,-500.0,0.00016697,2]
[326577067,1715116247199,-500.0,0.00016697,2]
[326577069,1715116247209,-189.12100988,0.00016697,2]
[326577070,1715116247219,-151.0,0.00016697,2]
[326577072,1715116247228,-162.529464,0.00016697,2]
[326577073,1715116247238,-182.22,0.00016697,2]
[326577075,1715116247248,-638.91,0.00016697,2]
[326577077,1715116247258,-500.0,0.00016697,2]
[326577089,1715116247377,-500.0,0.00016697,2]
[326577091,1715116247389,-500.0,0.00016697,2]
[326577093,1715116247399,-500.0,0.00016697,2]
[326577095,1715116247409,-159.098309,0.00016697,2]
[326577097,1715116247418,-159.098309,0.00016697,2]
[326577099,1715116247428,-159.098309,0.00016697,2]
[326577101,1715116247438,-159.098309,0.00016697,2]
[326577103,1715116247448,-154.1,0.00016697,2]
[326577104,1715116247457,-500.0,0.00016697,2]